bitfinex/quotes_SOLUSD_20230111
["timestamp","ask_amount","ask_price","bid_price","bid_amount"]
[1673436449175,66.94,15.982,15.969,17.0]
[1673436449372,20.0,15.981,15.969,17.0]
[1673436450133,20.0,15.981,15.968,110.6279]
[1673436450562,46.95,15.98,15.968,110.6279]
[1673436453530,46.95,15.981,15.968,110.6279]
[1673436455826,46.95,15.981,15.969,17.0]
[1673436456033,66.94,15.982,15.969,17.0]
[1673436456241,66.94,15.982,15.969,37.0]
[1673436456670,20.0,15.982,15.97,20.0]
[1673436460893,20.0,15.982,15.969,83.98]
[1673436464040,148.4745,15.984,15.969,83.98]
[1673436464238,148.4745,15.984,15.971,20.0]
[1673436464239,101.5345,15.984,15.971,20.0]
[1673436464448,101.5345,15.984,15.972,17.0]
[1673436464679,101.5345,15.984,15.972,63.97]
[1673436466676,46.92,15.988,15.973,20.0]
[1673436466882,46.92,15.988,15.974,17.0]
[1673436467201,46.92,15.989,15.974,63.97]
[1673436467407,46.92,15.989,15.975,20.0]
[1673436467597,46.92,15.989,15.976,17.0]
[1673436468018,46.92,15.989,15.977,20.0]
[1673436468454,46.92,15.989,15.978,17.0]
[1673436470146,73.91,15.99,15.978,17.0]
[1673436476243,73.91,15.99,15.977,17.0]
[1673436477290,73.91,15.99,15.977,37.0]
[1673436478026,46.92,15.99,15.977,17.0]
[1673436479071,46.92,15.991,15.977,17.0]
[1673436479280,46.92,15.991,15.978,20.0]
[1673436479495,46.92,15.991,15.979,17.0]
[1673436480550,227.5155,15.992,15.979,17.0]
[1673436480764,20.0,15.991,15.979,17.0]
[1673436480976,66.92,15.991,15.979,17.0]
[1673436495141,66.92,15.991,15.979,14.5]
[1673436502296,46.9,15.995,15.98,93.72]
[1673436502516,46.9,15.995,15.981,17.0]
[1673436502720,46.9,15.998,15.982,20.0]
[1673436502926,46.9,15.998,15.983,17.0]
[1673436503148,46.9,15.998,15.984,20.0]
[1673436503340,46.9,15.998,15.985,17.0]
[1673436503555,46.9,15.998,15.986,20.0]
[1673436505895,46.9,15.998,15.987,17.0]
[1673436506097,158.1766,15.999,15.987,17.0]
[1673436509365,46.89,15.999,15.987,16.74368213]
[1673436509586,46.89,15.999,15.988,17.0]
[1673436510951,46.89,15.999,15.985,66.93]
[1673436511673,46.89,15.999,15.985,20.0]
[1673436512839,46.89,15.999,15.986,17.0]
[1673436513252,46.89,15.999,15.985,20.0]
[1673436514699,46.89,15.999,15.986,17.0]
[1673436518694,200.1576,16.0,15.987,66.93]
[1673436518915,200.1576,16.0,15.989,20.0]
[1673436519450,200.1576,16.0,15.99,17.0]
[1673436520065,100.0,16.0,15.99,17.0]
[1673436521743,100.0,16.0,15.991,20.0]
[1673436523019,100.0,16.0,15.992,17.0]
[1673436524789,100.0,16.0,15.992,37.0]
[1673436533026,100.0,16.0,15.993,20.0]
[1673436533225,100.0,16.0,15.994,17.0]
[1673436534290,100.0,16.0,15.994,63.91]
[1673436534483,100.0,16.0,15.995,20.0]
[1673436534810,100.0,16.0,15.996,17.0]
[1673436535968,100.0,16.0,15.992,151.83628213]
[1673436536172,100.0,16.0,15.992,135.0926]
[1673436536593,100.0,16.0,15.992,115.0926]
[1673436538179,100.0,16.0,15.993,20.0]
[1673436538813,100.0,16.0,15.992,115.0926]
[1673436539015,100.0,16.0,15.993,17.0]
[1673436539648,100.0,16.0,15.992,115.0926]
[1673436539869,20.0,15.999,15.992,115.0926]
[1673436540924,100.0,16.0,15.992,115.0926]
[1673436541654,100.0,16.0,15.993,17.0]
[1673436546386,100.0,16.0,15.993,37.0]
[1673436548574,100.0,16.0,15.993,17.0]
[1673436549652,100.0,16.0,15.993,37.0]
[1673436550595,100.0,16.0,15.993,17.0]
[1673436551323,100.0,16.0,15.993,37.0]
[1673436551737,100.0,16.0,15.993,83.91]
[1673436551945,100.0,16.0,15.993,37.0]
[1673436552175,100.0,16.0,15.994,20.0]
[1673436552485,100.0,16.0,15.995,17.0]
[1673436553535,100.0,16.0,15.995,33.74368213]
[1673436554165,100.0,16.0,15.995,17.0]
[1673436565935,100.0,16.0,15.992,115.0926]
[1673436567925,100.0,16.0,15.993,17.0]
[1673436568752,100.0,16.0,15.991,20.0]
[1673436570018,100.0,16.0,15.992,17.0]
[1673436572664,100.0,16.0,15.992,37.0]
[1673436574030,100.0,16.0,15.993,20.0]
[1673436574216,100.0,16.0,15.994,17.0]
[1673436586005,100.0,16.0,15.994,33.27730343]
[1673436586415,100.0,16.0,15.995,20.0]
[1673436586620,100.0,16.0,15.996,17.0]
[1673436591995,100.0,16.0,15.993,16.27730343]
[1673436592199,100.0,16.0,15.991,20.0]
[1673436592200,20.0,15.999,15.991,20.0]
[1673436592405,100.0,16.0,15.989,20.0]
[1673436592603,100.0,16.0,15.991,20.0]
[1673436593149,100.0,16.0,15.992,20.0]
[1673436593362,100.0,16.0,15.993,17.0]
[1673436601467,100.0,16.0,15.994,20.0]
[1673436601680,100.0,16.0,15.995,17.0]
[1673436602828,100.0,16.0,15.992,20.0]
[1673436603056,100.0,16.0,15.993,17.0]
[1673436603665,100.0,16.0,15.992,20.0]
[1673436604935,100.0,16.0,15.993,17.0]
[1673436605337,100.0,16.0,15.992,20.0]
[1673436607875,20.0,15.999,15.987,84.03721287]
[1673436608091,66.89,15.999,15.985,66.93]
[1673436608280,66.89,15.999,15.985,20.0]
[1673436608507,17.0,15.998,15.982,65.45800284]
[1673436608726,17.0,15.998,15.982,45.45800284]
[1673436608913,46.9,15.997,15.98,46.95]
[1673436609126,17.0,15.996,15.98,66.95]
[1673436609539,46.9,15.995,15.98,46.95]
[1673436609752,17.0,15.994,15.98,46.95]
[1673436609980,20.0,15.993,15.981,17.0]
[1673436610172,66.91,15.993,15.982,20.0]
[1673436610711,66.91,15.993,15.98,46.95]
[1673436610923,66.91,15.993,15.977,38.57921003]
[1673436610924,37.0,15.992,15.977,85.53921003]
[1673436611141,20.0,15.991,15.977,85.53921003]
[1673436611459,66.92,15.991,15.977,101.81651346]
[1673436613145,66.92,15.991,15.978,17.0]
[1673436614407,66.92,15.991,15.978,33.27730343]
[1673436618596,66.92,15.991,15.978,53.27730343]
[1673436618814,66.92,15.991,15.978,33.27730343]
[1673436621423,17.0,15.99,15.976,37.60920648]
[1673436621629,17.0,15.99,15.977,63.96]
[1673436621954,46.92,15.989,15.977,80.23730343]
[1673436622177,46.92,15.989,15.978,20.0]
[1673436622391,63.92,15.99,15.978,20.0]
[1673436622578,63.92,15.99,15.977,63.96]
[1673436622786,20.0,15.989,15.977,63.96]
[1673436623007,20.0,15.989,15.977,46.96]
[1673436623219,63.92,15.988,15.976,16.27730343]
[1673436623762,17.0,15.988,15.976,36.27730343]
[1673436623975,46.92,15.99,15.977,17.0]
[1673436624390,46.91,15.992,15.979,20.0]
[1673436624600,20.0,15.991,15.98,17.0]
[1673436624822,66.92,15.991,15.98,17.0]
[1673436625035,20.0,15.991,15.98,17.0]
[1673436625240,46.92,15.99,15.98,17.0]
[1673436626711,46.92,15.99,15.982,20.0]
[1673436626917,46.91,15.994,15.983,17.0]
[1673436627128,108.3996,15.996,15.983,80.21730343]
[1673436627539,20.0,15.995,15.983,80.21730343]
[1673436629845,108.3996,15.996,15.983,80.21730343]
[1673436630288,20.0,15.995,15.983,80.21730343]
[1673436631026,20.0,15.995,15.983,33.27730343]
[1673436632288,20.0,15.995,15.983,17.0]
[1673436634495,108.3996,15.996,15.983,37.0]
[1673436634689,108.3996,15.996,15.984,46.94]
[1673436634895,108.3996,15.996,15.985,17.0]
[1673436635329,108.3996,15.996,15.985,63.93]
[1673436635562,108.3996,15.996,15.985,17.0]
[1673436638483,20.0,15.995,15.985,17.0]
[1673436638904,20.0,15.995,15.984,118.5453]
[1673436643126,108.3996,15.996,15.984,118.5453]
[1673436643535,108.3996,15.996,15.985,17.0]
[1673436644376,46.9,15.997,15.985,17.0]
[1673436644588,46.89,15.999,15.986,20.0]
[1673436644795,46.89,15.999,15.987,17.0]
[1673436645110,46.89,15.999,15.987,33.27730343]
[1673436645429,46.89,15.999,15.988,20.0]
[1673436645649,46.89,15.999,15.989,17.0]
[1673436645841,245.7676,16.0,15.989,17.0]
[1673436646388,245.7676,16.0,15.988,20.0]
[1673436647840,46.89,15.999,15.989,17.0]
[1673436648588,46.89,15.999,15.99,46.92]
[1673436648807,100.0,16.0,15.991,17.0]
[1673436649028,100.0,16.0,15.992,20.0]
[1673436649322,100.0,16.0,15.993,37.0]
[1673436653649,100.0,16.0,15.994,20.0]
[1673436655536,111.4881,16.0,15.994,20.0]
[1673436655736,111.4881,16.0,15.995,17.0]
[1673436657099,111.38177254,16.0,15.995,17.0]
[1673436661209,111.38177254,16.0,15.995,17.0]
[1673436661726,111.38177254,16.0,15.994,46.91]
[1673436661943,111.38177254,16.0,15.992,148.8824]
[1673436662974,111.38177254,16.0,15.993,20.0]
[1673436663837,111.38177254,16.0,15.994,17.0]
[1673436667724,111.38177254,16.0,15.995,20.0]
[1673436667920,111.38177254,16.0,15.996,17.0]
[1673436671928,46.85,16.012,15.997,66.9]
[1673436672131,32.05254803,16.03,15.998,20.0]
[1673436672132,46.85,16.015,15.998,20.0]
[1673436672348,46.85,16.015,15.999,20.96]
[1673436672679,46.85,16.015,16.0,63.76]
[1673436672864,46.84,16.018,16.0,164.30353679]
[1673436673077,46.84,16.018,16.001,103.29217698]
[1673436673286,5.10535152,16.016,16.002,134.9085]
[1673436673499,5.10535152,16.016,16.002,228.31067698]
[1673436673703,5.10535152,16.016,16.003,46.88]
[1673436673920,5.10535152,16.016,16.004,17.0]
[1673436674145,5.10535152,16.016,16.005,20.0]
[1673436674546,5.10535152,16.016,16.006,17.0]
[1673436674745,5.10535152,16.016,16.007,20.0]
[1673436682764,5.10535152,16.016,16.009,20.0]
[1673436686250,5.10535152,16.016,16.009,66.86]
[1673436686859,5.10535152,16.016,16.009,20.0]
[1673436689392,5.10535152,16.016,16.01,17.0]
[1673436689595,5.10535152,16.016,16.009,20.0]
[1673436690979,5.10535152,16.016,16.01,17.0]
[1673436691186,5.10535152,16.016,16.009,20.0]
[1673436693167,5.10535152,16.016,16.01,17.0]
[1673436693377,5.10535152,16.016,16.009,20.0]
[1673436694345,5.10535152,16.016,16.007,20.0]
[1673436695165,5.10535152,16.016,16.008,63.87]
[1673436695389,5.10535152,16.016,16.009,20.0]
[1673436697393,5.10535152,16.016,16.007,66.87]
[1673436697583,5.10535152,16.016,16.007,20.0]
[1673436699926,5.10535152,16.016,16.008,17.0]
[1673436700555,5.10535152,16.016,16.009,20.0]
[1673436702340,5.10535152,16.016,16.011,20.0]
[1673436705069,5.10535152,16.016,16.013,20.0]
[1673436705477,5.10535152,16.016,16.014,17.0]
[1673436706122,5.10535152,16.016,16.015,20.0]
[1673436706317,5.10535152,16.016,16.015,37.0]
[1673436707279,5.10535152,16.016,16.015,20.0]
[1673436707695,5.10535152,16.016,16.015,37.0]
[1673436708548,46.81,16.026,16.016,5.1]
[1673436708855,46.81,16.027,16.017,17.0]
[1673436709065,46.81,16.028,16.017,17.0]
[1673436710448,46.81,16.028,16.013,46.85]
[1673436710640,37.0,16.027,16.012,40.0]
[1673436711274,46.81,16.026,16.013,20.0]
[1673436711484,17.0,16.025,16.013,20.0]
[1673436711901,46.82,16.024,16.013,20.0]
[1673436712227,26.77,16.02,16.008,20.0]
[1673436712448,17.0,16.019,16.006,46.87]
[1673436712638,17.0,16.019,16.002,226.3516]
[1673436712639,63.83,16.019,16.003,46.88]
[1673436712849,20.0,16.018,16.003,46.88]
[1673436713369,46.84,16.017,16.004,17.0]
[1673436713583,46.84,16.018,16.005,20.0]
[1673436713897,46.83,16.019,16.006,17.0]
[1673436714331,46.83,16.019,16.007,20.0]
[1673436714535,46.83,16.019,16.006,46.87]
[1673436714751,20.0,16.018,16.004,46.88]
[1673436715276,20.0,16.018,16.005,20.0]
[1673436715470,46.84,16.017,16.005,20.0]
[1673436715907,46.84,16.017,16.006,17.0]
[1673436716940,46.83,16.021,16.007,46.87]
[1673436717155,46.83,16.021,16.008,37.0]
[1673436717366,46.83,16.022,16.008,37.0]
[1673436717584,46.83,16.02,16.008,37.0]
[1673436717903,66.83,16.021,16.008,83.87]
[1673436720098,20.0,16.021,16.008,63.87]
[1673436720307,17.0,16.02,16.008,46.87]
[1673436720514,20.0,16.019,16.004,46.88]
[1673436720730,17.0,16.018,16.004,46.88]
[1673436720945,63.84,16.018,16.004,46.88]
[1673436721366,45.52512149,16.02,16.005,20.0]
[1673436721367,46.83,16.019,16.005,20.0]
[1673436722022,26.77,16.02,16.006,63.87]
[1673436722240,20.0,16.021,16.007,20.0]
[1673436722553,20.0,16.021,16.008,17.0]
[1673436722763,26.8,16.03,16.01,26.58]
[1673436722951,212.3292,16.029,16.011,37.0]
[1673436723287,212.3292,16.029,16.011,83.86]
[1673436723288,259.1292,16.029,16.011,83.86]
[1673436723494,259.1292,16.029,16.012,20.0]
[1673436723708,259.1292,16.029,16.013,17.0]
[1673436723904,259.1292,16.029,16.013,63.85]
[1673436724105,259.1292,16.029,16.014,20.0]
[1673436724317,259.1292,16.029,16.015,17.0]
[1673436724543,259.1292,16.029,16.016,20.0]
[1673436724740,259.1292,16.029,16.015,46.85]
[1673436726115,259.1292,16.029,16.016,20.0]
[1673436727812,259.1292,16.029,16.017,63.84]
[1673436727997,259.1292,16.029,16.018,20.0]
[1673436728518,259.1292,16.029,16.017,63.84]
[1673436728734,259.1292,16.029,16.015,46.85]
[1673436729464,37.0,16.028,16.015,46.85]
[1673436729676,37.0,16.028,16.014,20.0]
[1673436729885,46.81,16.027,16.014,20.0]
[1673436732536,46.81,16.027,16.015,17.0]
[1673436732753,46.81,16.028,16.015,17.0]
[1673436732937,46.81,16.028,16.015,63.85]
[1673436733144,46.81,16.028,16.016,20.0]
[1673436733385,46.81,16.028,16.017,17.0]
[1673436734214,26.8,16.03,16.017,17.0]
[1673436734443,46.79,16.033,16.018,20.0]
[1673436734741,20.0,16.032,16.018,20.0]
[1673436734958,20.0,16.032,16.019,63.83]
[1673436735264,20.0,16.033,16.02,20.0]
[1673436735691,46.8,16.032,16.021,17.0]
[1673436735881,20.0,16.031,16.02,17.0]
[1673436736296,20.0,16.031,16.019,17.0]
[1673436736507,46.79,16.033,16.02,20.0]
[1673436736735,46.79,16.034,16.021,37.0]
[1673436736953,46.79,16.035,16.022,20.0]
[1673436737150,46.79,16.033,16.023,17.0]
[1673436737356,46.79,16.034,16.023,17.0]
[1673436737566,46.79,16.035,16.023,17.0]
[1673436739792,46.79,16.035,16.022,20.0]
[1673436741257,20.0,16.034,16.021,40.0]
[1673436741465,20.0,16.034,16.022,17.0]
[1673436741679,46.79,16.033,16.021,20.0]
[1673436742099,66.79,16.035,16.021,20.0]
[1673436742508,46.79,16.035,16.021,20.0]
[1673436742825,46.79,16.035,16.022,37.0]
[1673436743247,46.79,16.035,16.022,17.0]
[1673436744307,46.79,16.035,16.023,20.0]
[1673436744504,66.78,16.037,16.024,17.0]
[1673436744716,46.79,16.034,16.024,17.0]
[1673436744942,46.78,16.036,16.024,17.0]
[1673436746403,46.78,16.037,16.024,17.0]
[1673436746620,46.79,16.035,16.024,17.0]
[1673436746815,46.78,16.036,16.024,17.0]
[1673436747028,20.0,16.036,16.024,17.0]
[1673436747353,46.79,16.035,16.023,115.1247]
[1673436747783,46.78,16.036,16.023,115.1247]
[1673436747994,20.0,16.037,16.023,115.1247]
[1673436747995,46.79,16.034,16.023,115.1247]
[1673436748186,46.79,16.035,16.023,115.1247]
[1673436748397,46.79,16.033,16.023,115.1247]
[1673436748621,46.78,16.036,16.024,17.0]
[1673436748839,46.78,16.036,16.023,115.1247]
[1673436749263,46.78,16.036,16.024,20.0]
[1673436749571,46.78,16.036,16.023,115.1247]
[1673436749782,46.78,16.037,16.023,115.1247]
[1673436750187,20.0,16.036,16.023,115.1247]
[1673436750500,46.78,16.037,16.023,115.1247]
[1673436750722,46.78,16.037,16.024,37.0]
[1673436751889,46.78,16.037,16.024,17.0]
[1673436752520,20.0,16.036,16.024,17.0]
[1673436753040,46.79,16.035,16.024,17.0]
[1673436753251,46.79,16.035,16.024,37.0]
[1673436753463,46.78,16.036,16.024,37.0]
[1673436753656,46.78,16.036,16.024,17.0]
[1673436753867,46.78,16.037,16.024,17.0]
[1673436754078,20.0,16.036,16.024,17.0]
[1673436754824,46.79,16.035,16.024,17.0]
[1673436756823,46.79,16.035,16.021,66.83]
[1673436757034,57.0,16.034,16.02,112.4517]
[1673436757439,46.79,16.033,16.02,112.4517]
[1673436757766,20.0,16.031,16.02,112.4517]
[1673436758173,46.8,16.03,16.02,112.4517]
[1673436758800,20.0,16.028,16.015,46.85]
[1673436759225,46.81,16.027,16.013,162.8282]
[1673436759437,66.81,16.028,16.013,162.8282]
[1673436759647,17.0,16.027,16.013,115.9782]
[1673436760293,17.0,16.027,16.014,46.85]
[1673436760693,46.81,16.028,16.015,17.0]
[1673436761114,46.8,16.029,16.016,46.84]
[1673436761329,26.77,16.03,16.016,46.84]
[1673436761538,46.8,16.029,16.016,46.84]
[1673436762380,17.0,16.028,16.016,46.84]
[1673436762814,17.0,16.029,16.016,46.84]
[1673436763422,26.77,16.03,16.017,17.0]
[1673436763764,20.0,16.032,16.018,35.53107129]
[1673436763970,20.0,16.033,16.02,20.0]
[1673436764376,20.0,16.033,16.021,63.83]
[1673436765021,20.0,16.036,16.021,63.83]
[1673436765548,46.79,16.035,16.021,63.83]
[1673436765742,20.0,16.034,16.021,63.83]
[1673436766583,20.0,16.035,16.021,63.83]
[1673436768583,20.0,16.035,16.022,20.0]
[1673436768802,20.0,16.035,16.023,17.0]
[1673436769019,20.0,16.035,16.023,63.82]
[1673436769418,20.0,16.035,16.023,17.0]
[1673436769833,20.0,16.035,16.022,17.0]
[1673436770053,46.79,16.034,16.022,17.0]
[1673436770285,20.0,16.033,16.022,17.0]
[1673436771124,20.0,16.034,16.022,17.0]
[1673436771308,66.79,16.034,16.022,17.0]
[1673436773196,37.0,16.033,16.019,46.83]
[1673436773406,37.0,16.033,16.015,20.0]
[1673436773407,20.0,16.032,16.017,46.84]
[1673436773619,17.0,16.031,16.016,46.84]
[1673436773835,20.0,16.03,16.016,46.84]
[1673436774067,20.0,16.03,16.015,46.85]
[1673436774479,20.0,16.03,16.016,17.0]
[1673436774807,63.8,16.031,16.016,17.0]
[1673436775021,46.8,16.031,16.018,20.0]
[1673436775215,46.8,16.031,16.019,17.0]
[1673436775755,46.8,16.031,16.018,17.0]
[1673436776170,46.8,16.031,16.017,17.0]
[1673436776914,46.8,16.031,16.017,37.0]
[1673436777107,66.8,16.032,16.018,46.84]
[1673436777324,66.8,16.032,16.019,17.0]
[1673436777646,20.0,16.032,16.019,17.0]
[1673436777860,20.0,16.032,16.02,46.83]
[1673436778062,20.0,16.032,16.021,17.0]
[1673436778887,46.78,16.036,16.023,20.0]
[1673436779103,441.08,16.037,16.024,17.0]
[1673436779419,46.78,16.037,16.024,17.0]
[1673436781095,46.78,16.037,16.024,63.82]
[1673436781307,46.78,16.037,16.025,20.0]
[1673436781515,46.78,16.037,16.026,17.0]
[1673436781937,46.78,16.039,16.026,17.0]
[1673436782264,46.78,16.036,16.026,17.0]
[1673436782463,46.78,16.039,16.026,17.0]
[1673436784368,46.78,16.039,16.027,1.92]
[1673436785952,46.78,16.039,16.027,21.92]
[1673436786351,46.78,16.039,16.028,17.0]
[1673436788464,46.78,16.039,16.025,116.9808]
[1673436788668,20.0,16.038,16.025,116.9808]
[1673436789198,46.78,16.037,16.026,20.0]
[1673436789407,46.78,16.038,16.026,20.0]
[1673436789608,46.78,16.039,16.026,20.0]
[1673436789939,46.78,16.039,16.027,17.0]
[1673436792554,46.78,16.039,16.026,17.0]
[1673436793182,46.78,16.039,16.026,37.0]
[1673436794984,46.78,16.039,16.027,20.0]
[1673436795181,46.78,16.039,16.028,17.0]
[1673436795515,46.78,16.039,16.026,37.0]
[1673436796228,5.6053558,16.04,16.026,37.0]
[1673436796561,46.78,16.039,16.026,37.0]
[1673436797826,46.78,16.039,16.026,17.0]
[1673436798555,46.78,16.039,16.026,37.0]
[1673436799615,5.6053558,16.04,16.026,37.0]
[1673436799925,46.78,16.038,16.028,20.0]
[1673436800230,46.78,16.039,16.029,17.0]
[1673436809480,46.78,16.039,16.026,20.0]
[1673436809803,46.78,16.039,16.027,17.0]
[1673436811061,46.78,16.039,16.028,20.0]
[1673436811380,46.78,16.039,16.029,17.0]
[1673436811607,46.77,16.041,16.029,17.0]
[1673436811794,46.77,16.041,16.03,20.0]
[1673436811989,46.77,16.041,16.031,17.0]
[1673436812199,46.76,16.043,16.031,17.0]
[1673436812423,46.77,16.04,16.031,17.0]
[1673436812618,46.76,16.043,16.031,17.0]
[1673436812835,20.0,16.042,16.031,17.0]
[1673436813252,46.77,16.041,16.031,17.0]
[1673436814110,46.77,16.041,16.029,119.7905]
[1673436815157,26.77,16.04,16.029,119.7905]
[1673436815388,133.39,16.04,16.022,46.83]
[1673436815569,63.78,16.039,16.022,46.83]
[1673436815785,132.63103161,16.039,16.021,46.83]
[1673436816114,68.85103161,16.038,16.022,20.0]
[1673436816299,17.0,16.037,16.022,20.0]
[1673436816515,20.0,16.036,16.022,20.0]
[1673436816943,17.0,16.035,16.022,20.0]
[1673436817149,26.77,16.03,16.022,20.0]
[1673436817372,26.77,16.03,16.021,20.0]
[1673436817688,26.77,16.03,16.02,223.9474]
[1673436821264,26.77,16.03,16.021,17.0]
[1673436821787,26.77,16.03,16.02,110.1256]
[1673436821983,26.77,16.03,16.016,46.84]
[1673436822317,26.77,16.03,16.015,113.516]
[1673436822318,17.0,16.029,16.015,113.516]
[1673436822515,20.0,16.028,16.016,46.84]
[1673436823359,20.0,16.029,16.017,17.0]
[1673436823562,66.8,16.029,16.017,17.0]
[1673436823774,20.0,16.029,16.017,17.0]
[1673436824407,20.0,16.029,16.017,37.0]
[1673436824933,20.0,16.029,16.017,17.0]
[1673436827457,66.8,16.029,16.017,17.0]
[1673436827673,66.8,16.029,16.015,113.516]
[1673436827674,66.8,16.029,16.016,17.0]
[1673436828095,20.0,16.027,16.015,113.516]
[1673436829237,66.8,16.029,16.016,17.0]
[1673436829463,20.0,16.029,16.016,63.84]
[1673436830194,20.0,16.029,16.016,17.0]
[1673436830384,66.8,16.029,16.016,17.0]
[1673436835983,20.0,16.029,16.016,63.84]
[1673436839032,26.77,16.03,16.016,63.84]
[1673436839219,46.79,16.033,16.017,20.0]
[1673436839551,20.0,16.032,16.018,32.60516609]
[1673436839741,20.0,16.032,16.019,20.0]
[1673436839952,20.0,16.032,16.02,17.0]
[1673436840162,46.79,16.034,16.021,20.0]
[1673436840379,95.63103161,16.036,16.022,17.0]
[1673436840575,441.08,16.038,16.022,63.83]
[1673436840792,441.08,16.038,16.022,173.7898]
[1673436841206,441.08,16.038,16.023,20.0]
[1673436841422,394.3,16.038,16.024,17.0]
[1673436841665,46.78,16.037,16.025,20.0]
[1673436841855,46.78,16.037,16.026,17.0]
[1673436842279,66.78,16.039,16.026,17.0]
[1673436846690,46.78,16.039,16.026,17.0]
[1673436848799,73.3,16.04,16.027,21.92]
[1673436849219,73.3,16.04,16.028,17.0]
[1673436852689,102.0981,16.056,16.028,17.0]
[1673436852690,20.0,16.053,16.031,20.0]
[1673436852922,20.0,16.053,16.032,18.92]
[1673436853100,20.0,16.053,16.033,20.0]
[1673436853307,46.74,16.052,16.035,20.0]
[1673436853517,46.74,16.052,16.036,17.0]
[1673436853731,46.74,16.052,16.036,110.93112566]
[1673436853940,102.0981,16.056,16.036,110.93112566]
[1673436853941,46.73,16.053,16.037,67.15112566]
[1673436854273,133.96,16.06,16.039,20.0]
[1673436854274,46.73,16.055,16.039,20.0]
[1673436854475,46.73,16.055,16.04,20.0]
[1673436854690,66.72,16.059,16.042,20.0]
[1673436854886,46.73,16.054,16.042,20.0]
[1673436855090,46.72,16.058,16.042,20.0]
[1673436855527,46.72,16.058,16.043,17.0]
[1673436855951,46.72,16.058,16.042,20.0]
[1673436856561,46.72,16.058,16.043,17.0]
[1673436856806,20.0,16.057,16.043,17.0]
[1673436857018,46.72,16.058,16.043,17.0]
[1673436857229,46.73,16.056,16.043,17.0]
[1673436857434,46.72,16.057,16.043,17.0]
[1673436857953,20.0,16.058,16.043,17.0]
[1673436858378,46.72,16.059,16.043,17.0]